bitfinex-derivatives/quotes_SOLF0:USTF0_20260210
["timestamp","ask_amount","ask_price","bid_price","bid_amount"]
[1770735825242,3.8216975,83.709,83.636,3.94354447]
[1770735825443,10.7619,83.694,83.636,3.94354447]
[1770735826039,10.7635,83.682,83.636,3.94354447]
[1770735826239,3.8216975,83.681,83.628,10.7703]
[1770735826538,3.8216975,83.681,83.618,3.94354447]
[1770735826739,10.7651,83.669,83.62,10.7714]
[1770735827842,3.8216975,83.681,83.599,3.94354447]
[1770735828144,3.8216975,83.669,83.599,3.94354447]
[1770735828340,3.8216975,83.694,83.601,3.94354447]
[1770735828640,3.8216975,83.694,83.621,3.94354447]
[1770735830738,3.89641834,83.679,83.601,4.03395835]
[1770735832049,3.89641834,83.659,83.583,4.03395835]
[1770735833255,3.89641834,83.677,83.611,4.03395835]
[1770735833549,3.89641834,83.699,83.611,4.03395835]
[1770735834945,9.79387362,83.7,83.611,4.03395835]
[1770735835246,9.79387362,83.7,83.61,9.79387362]
[1770735835247,3.89641834,83.718,83.631,4.03395835]
[1770735837644,3.89641834,83.718,83.651,4.03395835]
[1770735839053,3.89641834,83.739,83.651,4.03395835]
[1770735839253,3.89641834,83.739,83.671,4.03395835]
[1770735839453,13.69029196,83.76,83.671,4.03395835]
[1770735839655,13.69029196,83.76,83.65,9.79387362]
[1770735839656,3.89641834,83.76,83.691,4.03395835]
[1770735841156,3.89641834,83.759,83.691,4.03395835]
[1770735841956,3.89641834,83.779,83.691,4.03395835]
[1770735843062,3.89641834,83.759,83.691,4.03395835]
[1770735843757,3.89641834,83.777,83.701,4.03395835]
[1770735843964,3.89641834,83.777,83.657,95.4]
[1770735843965,3.89641834,83.797,83.721,4.03395835]
[1770735844762,3.89641834,83.789,83.721,4.03395835]
[1770735846556,2.07790967,83.802,83.65,9.79387362]
[1770735846557,3.89641834,83.769,83.681,4.03395835]
[1770735847353,3.89641834,83.749,83.681,4.03395835]
[1770735847558,3.89641834,83.729,83.653,4.03395835]
[1770735848353,9.79387362,83.71,83.653,4.03395835]
[1770735848558,95.36,83.746,83.653,4.03395835]
[1770735848559,3.89641834,83.75,83.653,4.03395835]
[1770735848861,3.89641834,83.749,83.653,4.03395835]
[1770735849371,3.89641834,83.749,83.671,4.03395835]
[1770735850364,0.5,83.725,83.671,4.03395835]
[1770735850761,4.39641834,83.725,83.641,4.03395835]
[1770735854460,9.79387362,83.72,83.641,4.03395835]
[1770735855072,4.39641834,83.725,83.641,4.03395835]
[1770735858074,3.89641834,83.689,83.621,4.03395835]
[1770735861770,3.71420784,83.669,83.601,3.80516898]
[1770735865772,3.71420784,83.659,83.582,3.80516898]
[1770735866075,3.71420784,83.639,83.561,3.80516898]
[1770735866874,3.71420784,83.629,83.561,3.80516898]
[1770735867174,3.71420784,83.629,83.54,9.79359407]
[1770735867175,3.71420784,83.629,83.541,3.80516898]
[1770735871171,3.71420784,83.609,83.541,3.80516898]
[1770735873069,3.71420784,83.629,83.541,3.80516898]
[1770735873981,3.71420784,83.629,83.523,3.80516898]
[1770735874278,3.71420784,83.609,83.523,3.80516898]
[1770735874878,3.71420784,83.604,83.548,10.7806]
[1770735875071,3.71420784,83.604,83.523,3.80516898]
[1770735875582,3.71420784,83.623,83.54,3.80516898]
[1770735876384,3.71420784,83.621,83.54,3.80516898]
[1770735876888,3.71420784,83.601,83.522,3.80516898]
[1770735877183,3.71420784,83.599,83.522,3.80516898]
[1770735877484,3.71420784,83.59,83.535,10.7823]
[1770735877680,3.71420784,83.59,83.522,3.80516898]
[1770735877880,3.71420784,83.579,83.502,3.80516898]
[1770735878277,3.71420784,83.575,83.527,10.7834]
[1770735878484,3.71420784,83.575,83.502,3.80516898]
[1770735878873,3.71420784,83.589,83.502,3.80516898]
[1770735879586,3.71420784,83.577,83.518,10.7845]
[1770735879785,3.71420784,83.569,83.502,3.80516898]
[1770735880181,3.71420784,83.569,83.472,3.80516898]
[1770735880574,3.71420784,83.569,83.457,21.5849]
[1770735880575,3.71420784,83.569,83.481,3.80516898]
[1770735881486,3.71420784,83.542,83.488,10.7884]
[1770735882784,3.71420784,83.542,83.48,3.80516898]
[1770735882785,3.71420784,83.536,83.48,3.80516898]
[1770735883577,9.79359407,83.53,83.446,3.80516898]
[1770735884479,9.79359407,83.55,83.446,3.80516898]
[1770735885387,10.7807,83.549,83.486,10.7886]
[1770735886895,10.7819,83.539,83.48,4.75144799]
[1770735887584,35.89,83.605,83.483,4.79616776]
[1770735887881,9.83909098,83.56,83.483,4.79616776]
[1770735888490,109.92,83.604,83.463,4.78374447]
[1770735888491,9.83909098,83.54,83.463,4.78374447]
[1770735889087,10.7832,83.529,83.472,10.7904]
[1770735890788,10.7832,83.529,83.472,15.55831683]
[1770735890986,10.7821,83.538,83.481,4.76791306]
[1770735891989,10.7808,83.548,83.486,4.81478294]
[1770735892494,10.7796,83.557,83.5,10.7869]
[1770735893096,10.778,83.569,83.503,4.81478294]
[1770735893403,109.82,83.579,83.503,4.81478294]
[1770735894399,109.82,83.579,83.506,10.7861]
[1770735894803,109.82,83.579,83.515,4.79649085]
[1770735895390,9.83909098,83.6,83.515,4.79649085]
[1770735895695,105.39909098,83.6,83.515,4.79649085]
[1770735895898,95.56,83.6,83.521,4.79578537]
[1770735896294,10.7744,83.598,83.54,4.79578537]
[1770735896596,9.83909098,83.63,83.541,4.79578537]
[1770735896993,110.02,83.649,83.561,4.79578537]
[1770735897501,9.83909098,83.68,83.593,4.79578537]
[1770735898002,9.83909098,83.66,83.574,4.80043583]
[1770735898394,10.7674,83.652,83.581,4.80043583]
[1770735898698,95.54,83.659,83.581,4.80043583]
[1770735898896,10.7686,83.643,83.583,10.7762]
[1770735899702,117.07909098,83.66,83.581,4.80043583]
[1770735900297,9.83909098,83.64,83.582,10.7762]
[1770735900698,10.7693,83.637,83.581,4.80043583]
[1770735901004,9.83909098,83.64,83.519,21.5688]
[1770735901005,9.83909098,83.64,83.563,4.83376072]
[1770735901400,9.83909098,83.64,83.568,4.83376072]
[1770735901602,9.83909098,83.66,83.568,4.83376072]
[1770735901792,10.7679,83.648,83.577,10.7769]
[1770735901992,9.83909098,83.64,83.577,10.7769]
[1770735902197,9.83909098,83.64,83.568,4.83376072]
[1770735903118,10.7676,83.65,83.582,4.82858168]
[1770735903600,9.83909098,83.64,83.576,10.7771]
[1770735903809,9.83909098,83.64,83.564,4.82858168]
[1770735904394,10.769,83.639,83.576,10.7771]
[1770735904802,9.83909098,83.64,83.489,167.8178]
[1770735904803,9.83909098,83.62,83.54,4.82633796]
[1770735905001,10.7742,83.599,83.54,4.82633796]
[1770735906095,10.7754,83.59,83.523,10.7838]
[1770735906299,10.7754,83.59,83.521,4.81799818]
[1770735906695,189.0519,83.641,83.442,239.34]
[1770735906696,10.774,83.601,83.534,4.81799818]
[1770735907302,20.61439098,83.59,83.527,10.7834]
[1770735907600,9.83909098,83.59,83.515,4.81799818]
[1770735908711,9.83909098,83.62,83.531,4.80494596]
[1770735908912,9.83909098,83.64,83.551,4.80494596]
[1770735909704,9.83909098,83.64,83.55,9.83909098]
[1770735909705,20.60799098,83.64,83.582,10.7762]
[1770735910111,9.83909098,83.64,83.535,4.78859606]
[1770735910410,9.83909098,83.64,83.534,21.5651]
[1770735910411,9.83909098,83.64,83.554,4.78859606]
[1770735911003,10.7704,83.628,83.568,10.7781]
[1770735911410,9.83909098,83.64,83.587,10.7756]
[1770735912110,10.769,83.639,83.587,10.7756]
[1770735912307,9.83909098,83.64,83.557,4.78145146]
[1770735912609,95.5,83.655,83.557,4.78145146]
[1770735912914,9.83909098,83.66,83.587,4.78145146]
[1770735913106,10.7642,83.677,83.587,4.78145146]
[1770735913306,10.7642,83.677,83.623,10.271]
[1770735914111,9.83909098,83.68,83.623,10.271]
[1770735914409,109.88,83.698,83.6,9.83909098]
[1770735914410,109.88,83.698,83.624,4.79406919]
[1770735914607,10.7603,83.707,83.624,4.79406919]
[1770735914810,9.83909098,83.72,83.624,4.79406919]
[1770735915204,10.759,83.717,83.655,10.7668]
[1770735915409,10.759,83.717,83.644,4.79406919]
[1770735915803,10.759,83.717,83.65,10.7676]
[1770735916008,9.83909098,83.71,83.625,4.81025077]
[1770735916210,9.83909098,83.71,83.63,9.83909098]
[1770735916408,9.83909098,83.71,83.631,4.81025077]
[1770735916712,9.83909098,83.71,83.654,10.767]
[1770735917209,20.59899098,83.71,83.645,10.7682]
[1770735919512,10.7612,83.7,83.636,10.7693]
[1770735921103,10.7612,83.7,83.644,10.7682]
[1770735921303,9.83909098,83.71,83.631,4.81025077]
[1770735922510,10.7584,83.722,83.662,10.766]
[1770735923109,10.7594,83.714,83.653,15.5936891]
[1770735923414,9.83909098,83.71,83.634,4.8265891]
[1770735923618,9.83909098,83.71,83.658,10.7665]
[1770735923820,10.7587,83.719,83.658,10.7665]
[1770735924114,10.7587,83.719,83.658,15.5939612]
[1770735924813,9.83909098,83.71,83.648,10.7678]
[1770735925014,9.80069143,83.7,83.635,4.8274612]
[1770735926421,9.80069143,83.7,83.646,10.7681]
[1770735927415,10.7615,83.698,83.638,10.7691]
[1770735927919,10.7615,83.698,83.645,10.7681]
[1770735928716,10.7623,83.691,83.645,10.7681]
[1770735929021,10.7623,83.691,83.638,4.82709938]
[1770735929716,10.7635,83.682,83.629,10.7701]
[1770735929912,9.80069143,83.7,83.63,4.84345839]
[1770735930115,10.7598,83.711,83.658,10.7665]
[1770735930821,10.7598,83.711,83.665,10.7656]
[1770735931916,10.7606,83.705,83.658,4.84345839]
[1770735932622,9.80069143,83.71,83.658,4.84345839]
[1770735933717,10.7612,83.7,83.658,4.84345839]
[1770735933921,9.80069143,83.71,83.658,4.84345839]
[1770735934221,10.7611,83.701,83.658,4.84345839]
[1770735934417,9.80069143,83.71,83.631,4.85511357]
[1770735934624,9.80069143,83.69,83.601,4.85511357]
[1770735935911,10.7629,83.687,83.641,10.7687]
[1770735936524,9.80069143,83.69,83.648,10.7678]
[1770735937720,9.80069143,83.69,83.602,21.5475]
[1770735937721,10.7608,83.703,83.655,4.8570307]
[1770735938020,10.7608,83.703,83.62,9.80069143]
[1770735938021,9.80069143,83.72,83.621,4.86589775]
[1770735938227,9.80069143,83.68,83.602,4.86589775]
[1770735938422,9.80069143,83.68,83.546,167.7041]
[1770735938423,9.80069143,83.66,83.583,4.86589775]
[1770735938628,10.7682,83.646,83.593,10.7748]
[1770735938923,9.80069143,83.66,83.583,4.86589775]
[1770735939227,9.80069143,83.64,83.583,4.86589775]
[1770735939718,9.80069143,83.64,83.585,10.7758]
[1770735939919,9.80069143,83.64,83.565,4.89847106]
[1770735940322,9.80069143,83.64,83.566,4.89847106]
[1770735940640,9.80069143,83.66,83.571,4.89847106]
[1770735940823,9.80069143,83.64,83.571,4.89847106]
[1770735941221,9.80069143,83.66,83.571,4.89847106]
[1770735941425,10.7687,83.642,83.589,10.7754]
[1770735942222,10.7687,83.642,83.55,9.80069143]
[1770735942223,10.7674,83.652,83.596,10.7745]
[1770735942528,9.80069143,83.66,83.59,4.88907124]
[1770735943022,9.80069143,83.64,83.57,4.88907124]
[1770735943528,9.80069143,83.64,83.571,10.7777]
[1770735943529,10.7704,83.628,83.571,10.7777]
[1770735943929,9.80069143,83.64,83.571,4.95349161]
[1770735944126,10.7678,83.649,83.59,4.95349161]
[1770735944331,9.80069143,83.66,83.59,4.95349161]
[1770735944732,10.7673,83.653,83.59,4.95349161]
[1770735945728,10.7673,83.653,83.594,10.7747]
[1770735945933,10.7673,83.653,83.594,15.72271885]
[1770735947128,10.7673,83.653,83.599,10.7741]
[1770735949728,109.66,83.676,83.606,10.7732]
[1770735949729,10.7665,83.659,83.606,10.7732]
[1770735949929,9.81094725,83.67,83.595,4.94801885]
[1770735950128,9.81094725,83.65,83.574,4.9493579]
[1770735950330,9.81094725,83.65,83.55,9.81094725]
[1770735950331,9.81094725,83.65,83.581,4.9493579]
[1770735951733,10.7681,83.646,83.592,10.775]
[1770735951932,10.7681,83.646,83.593,4.93195068]
[1770735952236,9.81094725,83.65,83.593,4.93195068]
[1770735952826,10.769,83.639,83.593,4.93195068]
[1770735953229,9.81094725,83.65,83.575,4.93195068]
[1770735953535,35.89,83.668,83.575,4.93195068]
[1770735953536,9.81094725,83.63,83.575,4.93195068]
[1770735953730,9.81094725,83.65,83.575,4.93195068]
[1770735954633,9.81094725,83.61,83.551,4.93140482]
[1770735955132,10.7748,83.594,83.551,4.93140482]
[1770735956528,10.7761,83.584,83.532,4.95242791]
[1770735957245,10.7762,83.583,83.521,4.95242791]
[1770735957432,9.81094725,83.59,83.521,4.95242791]
[1770735958131,9.81094725,83.57,83.521,4.95242791]
[1770735958333,9.81094725,83.57,83.504,272.34638183]
[1770735958532,9.81094725,83.57,83.504,4.95562492]
[1770735958735,9.81094725,83.55,83.487,4.95562492]
[1770735959041,9.81094725,83.57,83.487,4.95562492]
[1770735959245,9.81094725,83.57,83.491,4.95562492]
[1770735959436,9.81094725,83.55,83.491,4.95562492]
[1770735959741,9.81094725,83.57,83.491,4.95562492]
[1770735960040,9.81094725,83.59,83.518,4.92640888]
[1770735960442,10.7748,83.594,83.533,4.92640888]
[1770735961142,9.81094725,83.59,83.515,4.92640888]
[1770735961643,10.7788,83.563,83.515,4.92640888]
[1770735962244,10.7799,83.555,83.502,10.7866]
[1770735962540,9.81094725,83.57,83.497,4.92840175]
[1770735962733,9.81094725,83.57,83.46,4.92840175]
[1770735962734,9.81094725,83.53,83.46,4.92840175]
[1770735963242,9.81094725,83.53,83.47,4.92840175]
[1770735964140,10.7832,83.529,83.473,4.93224178]
[1770735964844,9.81094725,83.57,83.413,21.5963]
[1770735964845,9.81094725,83.55,83.474,4.93224178]
[1770735965733,10.7819,83.54,83.476,4.93834393]
[1770735966346,9.81094725,83.53,83.476,4.93834393]
[1770735966545,9.81094725,83.53,83.458,4.93834393]
[1770735967242,9.81094725,83.53,83.472,4.93834393]
[1770735967842,9.81094725,83.55,83.472,4.93834393]
[1770735968038,10.7823,83.536,83.477,10.7898]
[1770735968235,10.7823,83.536,83.45,9.81094725]
[1770735968236,9.81094725,83.55,83.478,4.95909408]
[1770735968544,10.7809,83.547,83.485,15.74779408]
[1770735969542,10.7823,83.536,83.485,4.95909408]
[1770735969743,9.83700785,83.53,83.463,4.95909408]
[1770735970337,9.83700785,83.55,83.475,4.92034276]
[1770735971141,10.7822,83.537,83.477,4.92034276]
[1770735971342,9.83700785,83.53,83.477,4.92034276]
[1770735971742,9.83700785,83.53,83.479,4.92034276]
[1770735971945,10.782,83.538,83.479,4.92034276]
[1770735972241,9.83700785,83.55,83.479,4.92034276]
[1770735972242,10.7809,83.547,83.489,10.7883]
[1770735972435,10.72984281,83.61,83.437,21.59]
[1770735972436,9.83700785,83.57,83.49,4.9272923]
[1770735973038,9.83700785,83.57,83.48,9.83700785]
[1770735973039,10.7783,83.567,83.507,4.9272923]
[1770735973752,9.83700785,83.59,83.522,4.9272923]
[1770735973948,9.83700785,83.59,83.466,95.56]
[1770735974243,239.38,83.627,83.497,4.92034377]
[1770735974244,9.83700785,83.57,83.497,4.92034377]
[1770735974647,10.7795,83.558,83.498,10.7872]
[1770735975046,10.7795,83.558,83.48,9.83700785]
[1770735975047,10.7795,83.558,83.499,4.92034377]
[1770735975545,9.83700785,83.57,83.504,4.92034377]
[1770735975738,109.54,83.581,83.504,4.92034377]
[1770735976349,9.83700785,83.59,83.504,4.92034377]
[1770735976547,9.83700785,83.59,83.527,4.92690025]
[1770735977251,9.83700785,83.61,83.54,4.92690025]
[1770735978548,95.54,83.617,83.553,4.93538103]
[1770735978742,9.83700785,83.61,83.533,4.93538103]
[1770735979245,10.776,83.585,83.533,4.93538103]
[1770735979447,10.776,83.585,83.527,10.7834]
[1770735979647,9.83700785,83.59,83.527,10.7834]
[1770735979854,9.83700785,83.59,83.532,10.7827]
[1770735980155,9.83700785,83.61,83.533,4.89609426]
[1770735980951,9.83700785,83.59,83.514,4.89602033]
[1770735981151,119.49700785,83.61,83.521,4.89602033]
[1770735981351,119.51700785,83.63,83.521,4.89602033]
[1770735982247,119.51700785,83.63,83.549,10.7806]
[1770735982248,10.7732,83.607,83.549,10.7806]
[1770735982953,10.7732,83.607,83.549,15.72843577]
[1770735983345,9.83700785,83.61,83.549,15.72843577]
[1770735983542,9.83700785,83.63,83.552,4.94783577]
[1770735984755,10.7709,83.624,83.561,10.7789]
[1770735985153,109.7,83.639,83.562,4.95357225]
[1770735985354,9.83700785,83.65,83.577,4.95357225]
[1770735986174,20.60460785,83.65,83.583,4.95108713]
[1770735986372,9.83700785,83.65,83.583,4.95108713]
[1770735986969,10.7699,83.632,83.583,4.95108713]
[1770735987166,10.7699,83.632,83.57,4.95108713]
[1770735987572,9.83700785,83.66,83.571,4.95108713]
[1770735987772,10.7681,83.647,83.591,10.7751]
[1770735988378,10.7668,83.657,83.591,10.7751]
[1770735988882,9.83700785,83.66,83.591,10.7751]
[1770735989074,10.7678,83.649,83.588,4.93062884]
[1770735989474,9.83700785,83.66,83.588,4.93062884]
[1770735990877,35.89,83.716,83.597,4.96330641]
[1770735991082,9.83700785,83.7,83.597,4.96330641]
[1770735991276,9.83700785,83.71,83.611,4.96330641]
[1770735991471,10.7616,83.697,83.63,4.96330641]
[1770735991681,9.83700785,83.71,83.63,4.96330641]
[1770735992076,110.0,83.728,83.648,4.91678871]
[1770735992478,21.5066,83.762,83.648,4.91678871]
[1770735992479,9.83700785,83.71,83.648,4.91678871]
[1770735992675,110.06,83.736,83.648,4.91678871]
[1770735992874,9.83700785,83.72,83.648,4.91678871]
[1770735993076,10.76,83.71,83.648,4.91678871]
[1770735993276,9.83700785,83.7,83.627,4.91678871]
[1770735993677,9.83700785,83.7,83.64,4.91678871]
[1770735995678,9.83700785,83.7,83.64,15.68558871]
[1770735995881,10.7607,83.704,83.641,4.85154082]
[1770735996184,239.34,83.788,83.664,4.85154082]
[1770735996483,9.83700785,83.75,83.664,4.85154082]
[1770735996976,9.83700785,83.75,83.678,4.85154082]
[1770735997177,110.06,83.768,83.678,4.85154082]
[1770735997377,9.83700785,83.76,83.678,4.85154082]
[1770735997582,20.59050785,83.76,83.683,4.85154082]
[1770735997984,169.27190967,83.802,83.683,4.85154082]
[1770735997985,95.46,83.789,83.683,4.85154082]
[1770735998183,9.83700785,83.78,83.701,4.86518072]
[1770735998390,2.07790967,83.802,83.721,4.86518072]
[1770735998697,166.9573,83.921,83.793,4.86518072]
[1770735998987,9.83700785,83.91,83.821,4.86518072]
[1770735999179,10.65297899,83.965,83.82,9.83700785]
[1770735999180,2.07560449,83.89,83.828,4.86518072]
[1770735999377,9.83700785,83.93,83.828,4.86518072]
[1770735999588,9.83700785,83.93,83.84,9.83700785]
[1770735999788,2.07471353,83.923,83.841,4.85257366]
[1770735999991,2.07471353,83.923,83.844,4.85257366]
[1770736000184,9.83700785,83.91,83.83,9.83700785]
[1770736000486,10.7343,83.909,83.823,4.85257366]
[1770736000692,9.83700785,83.89,83.801,4.85257366]
[1770736001792,9.83700785,83.89,83.803,10.7479]
[1770736001977,9.83700785,83.89,83.79,9.83700785]
[1770736001978,9.83700785,83.89,83.804,4.94187947]
[1770736003888,9.83700785,83.89,83.79,9.83700785]
[1770736004190,9.83700785,83.85,83.783,4.90222523]
[1770736004383,9.83700785,83.87,83.783,4.90222523]
[1770736004583,110.4,83.889,83.785,4.90222523]
[1770736004785,9.83700785,83.9,83.791,4.90222523]
[1770736005490,9.83700785,83.9,83.79,9.83700785]
[1770736005491,10.7357,83.899,83.814,4.90222523]
[1770736005687,9.83700785,83.88,83.814,4.90222523]
[1770736005891,9.83700785,83.88,83.733,167.3301]
[1770736005892,9.83700785,83.88,83.781,4.90465063]
[1770736006387,9.83700785,83.88,83.798,4.90465063]
[1770736006592,9.83700785,83.88,83.801,4.90465063]
[1770736006790,110.52,83.898,83.801,4.90465063]
[1770736006990,9.75594709,83.9,83.801,4.90465063]
[1770736007387,9.75594709,83.9,83.808,4.90465063]
[1770736007592,2.07471353,83.923,83.841,4.90465063]
[1770736007885,238.84,83.973,83.809,167.178]
[1770736007886,9.75594709,83.96,83.868,4.89864219]
[1770736008091,2.07416326,83.943,83.868,4.89864219]
[1770736008484,9.75594709,83.94,83.868,4.89864219]
[1770736008683,2.07416326,83.943,83.868,4.89864219]
[1770736009090,2.07416326,83.943,83.871,4.89864219]
[1770736009292,10.7283,83.956,83.871,4.89864219]
[1770736009496,2.07390986,83.953,83.871,4.89864219]
[1770736009795,10.7266,83.97,83.873,4.89864219]
[1770736010292,2.07376773,83.963,83.891,4.89107746]
[1770736010489,2.07376773,83.963,83.846,167.1044]
[1770736010490,9.75594709,83.96,83.887,4.89107746]
[1770736011097,2.07369359,83.963,83.887,4.89107746]
[1770736011291,9.75594709,83.95,83.887,4.89107746]
[1770736011990,10.728,83.959,83.887,4.89107746]
[1770736012384,10.7295,83.947,83.861,4.91732506]
[1770736012996,9.75594709,83.91,83.84,4.91732506]
[1770736013194,9.75594709,83.93,83.791,4.91732506]
[1770736013195,9.75594709,83.89,83.791,4.91732506]
[1770736013495,9.75594709,83.87,83.791,4.91732506]
[1770736013682,110.8,83.912,83.791,4.91732506]
[1770736013887,104.84,83.917,83.818,4.96357869]
[1770736014089,9.75594709,83.9,83.818,4.96357869]
[1770736014595,9.75594709,83.86,83.797,4.96357869]
[1770736014795,95.22,83.876,83.797,4.96357869]
[1770736014991,9.75594709,83.87,83.8,4.96357869]
[1770736015193,9.75594709,83.89,83.8,4.96357869]
[1770736015695,9.75594709,83.89,83.815,4.96357869]
[1770736016102,9.75594709,83.87,83.791,4.93692092]
[1770736016799,9.75594709,83.87,83.793,4.93692092]
[1770736017297,20.49534709,83.87,83.793,4.93692092]
[1770736017886,20.49534709,83.87,83.771,4.94997277]
[1770736017887,9.75594709,83.85,83.771,4.94997277]
[1770736018585,9.75594709,83.83,83.751,4.94997277]
[1770736018792,108.3,83.849,83.751,4.94997277]
[1770736018793,9.75594709,83.81,83.751,4.94997277]
[1770736019188,9.75594709,83.83,83.751,4.94997277]
[1770736019387,108.3,83.849,83.751,4.94997277]
[1770736019595,9.75594709,83.87,83.771,4.94997277]
[1770736019786,10.7397,83.867,83.786,4.94997277]
[1770736020296,10.7397,83.867,83.79,4.97988213]
[1770736020490,9.75594709,83.87,83.79,4.97988213]
[1770736020694,95.22,83.882,83.805,4.97988213]
[1770736020990,9.75594709,83.91,83.811,4.97988213]
[1770736021189,9.75594709,83.89,83.811,4.97988213]
[1770736021592,9.75594709,83.89,83.81,9.75594709]
[1770736021593,9.75594709,83.89,83.815,4.97988213]
[1770736021994,9.75594709,83.91,83.815,4.97988213]
[1770736022191,9.75594709,83.92,83.846,10.7423]
[1770736022996,9.75594709,83.92,83.847,4.98369185]
[1770736023504,9.75594709,83.94,83.871,4.98369185]
[1770736024603,2.07369359,83.963,83.881,4.97726123]
[1770736024808,9.75594709,83.93,83.841,4.97726123]
[1770736025000,9.75594709,83.93,83.861,4.97726123]
[1770736025199,2.07369359,83.963,83.861,4.97726123]
[1770736025498,9.75594709,83.98,83.894,4.97726123]
[1770736026197,95.2,83.997,83.831,4.9789518]
[1770736026402,2.07362563,83.959,83.861,4.9789518]
[1770736026598,2.07362563,83.959,83.882,10.7377]
[1770736026599,10.7294,83.948,83.882,10.7377]
[1770736026800,2.07362563,83.959,83.861,4.9789518]
[1770736026995,2.07362563,83.959,83.881,4.9789518]
[1770736027201,10.7247,83.984,83.902,4.9789518]
[1770736027404,2.07345883,83.973,83.902,4.9789518]
[1770736028000,9.75594709,83.96,83.902,4.9789518]
[1770736028210,2.07345883,83.973,83.881,4.96972473]
[1770736028396,10.7279,83.959,83.886,4.96972473]
[1770736029104,9.75594709,83.94,83.861,4.96972473]
[1770736029305,9.75594709,83.92,83.839,4.96972473]
[1770736029604,10.7333,83.918,83.85,10.7418]
[1770736029810,9.75594709,83.92,83.851,4.97309294]
[1770736030310,10.7316,83.931,83.852,4.97309294]
[1770736030505,104.91594709,83.94,83.852,4.97309294]
[1770736030810,10.7348,83.906,83.832,10.7442]
[1770736031007,9.75594709,83.9,83.831,4.97309294]
[1770736031304,9.75594709,83.88,83.809,10.7471]
[1770736031508,9.75594709,83.88,83.81,4.97309294]
[1770736031913,95.16,83.897,83.823,15.71373777]
[1770736032110,95.16,83.897,83.823,4.96843777]
[1770736032817,9.75594709,83.88,83.802,4.96843777]
[1770736033007,95.16,83.897,83.802,4.96843777]
[1770736033710,35.89,83.937,83.851,3.97264818]
[1770736033903,3.94318079,83.936,83.851,3.97264818]
[1770736034422,3.94318079,83.939,83.829,3.97264818]
[1770736034610,3.94318079,83.939,83.841,3.97264818]
[1770736034812,3.94318079,83.919,83.841,3.97264818]
[1770736035114,3.94318079,83.909,83.824,3.97264818]
[1770736035510,3.94318079,83.929,83.841,3.97264818]
[1770736036416,3.94318079,83.927,83.85,10.7418]
[1770736036616,3.94318079,83.927,83.841,3.97264818]
[1770736036813,13.69912788,83.91,83.841,3.97264818]
[1770736037021,3.94318079,83.909,83.82,3.97264818]
[1770736037621,14.68058079,83.885,83.82,3.97264818]
[1770736038121,9.75594709,83.89,83.82,3.97264818]
[1770736039215,3.94318079,83.906,83.844,10.7425]
[1770736039626,3.94318079,83.906,83.84,3.97264818]
[1770736039818,10.733,83.92,83.854,10.7413]
[1770736040018,3.94318079,83.926,83.854,3.90658714]
[1770736040419,3.94318079,83.926,83.83,9.75594709]
[1770736040420,3.94318079,83.926,83.856,14.64768714]
[1770736040920,3.73112509,83.924,83.856,14.64768714]
[1770736041123,3.73112509,83.924,83.865,10.7399]
[1770736042022,3.73112509,83.924,83.876,10.7385]
[1770736042721,3.73112509,83.924,83.862,10.7403]
[1770736043316,3.73112509,83.924,83.871,10.7392]
[1770736043512,3.73112509,83.924,83.856,3.90658714]
[1770736043918,9.75594709,83.92,83.86,10.7406]
[1770736045028,9.75594709,83.92,83.868,10.7395]
[1770736045226,4.06265286,83.919,83.856,3.90658714]
[1770736045527,4.06265286,83.919,83.866,10.7398]
[1770736045827,4.06265286,83.928,83.866,4.02645473]
[1770736046627,10.7321,83.927,83.875,10.7387]
[1770736046829,10.7321,83.927,83.866,4.02645473]
[1770736047635,8.33037623,83.96,83.866,4.02645473]
[1770736047933,20.90185414,84.016,83.826,95.16]
[1770736047934,4.06265286,83.979,83.891,4.02645473]
[1770736048229,4.06265286,84.003,83.911,4.02645473]
[1770736048431,9.75594709,84.02,83.931,4.02645473]
[1770736048636,10.74035978,84.056,83.892,95.16]
[1770736048637,4.06265286,84.044,83.951,4.02645473]
[1770736048822,4.06265286,84.093,83.995,4.02645473]
[1770736049026,4.06265286,84.079,83.981,4.02645473]
[1770736049222,4.06265286,84.079,83.991,4.02645473]
[1770736049425,20.90185414,84.146,83.965,166.8661]
[1770736049426,4.06265286,84.109,84.024,4.02645473]
[1770736049633,9.75594709,84.13,84.031,4.02645473]
[1770736049929,4.06265286,84.13,84.071,10.7136]
[1770736050131,4.06265286,84.149,84.061,4.02645473]
[1770736050526,4.06265286,84.149,84.067,4.02645473]
[1770736050928,4.06265286,84.149,84.069,4.02645473]
[1770736051232,166.3529,84.225,84.043,95.14]
[1770736051234,4.06265286,84.231,84.131,4.02645473]